bitfinex/quotes_ETHUSD_20240731
["timestamp","ask_amount","ask_price","bid_price","bid_amount"]
[1722385236334,0.07503853,3277.5,3277.2,3.05138]
[1722385237416,0.07503853,3277.5,3277.2,3.05131]
[1722385237621,0.07503853,3277.5,3277.1,3.05147]
[1722385237936,0.95301271,3277.7,3277.2,3.05133]
[1722385238143,0.07513553,3277.4,3277.3,3.05129]
[1722385238461,0.95301271,3277.9,3277.5,3.05104]
[1722385238611,0.95301271,3277.8,3277.5,3.05104]
[1722385238949,0.95301271,3277.9,3277.5,3.05104]
[1722385239614,0.95301271,3278.0,3277.5,3.05104]
[1722385239820,0.95301271,3277.9,3277.5,3.05104]
[1722385240134,4.77033091,3278.1,3277.8,3.05082]
[1722385240135,0.95301271,3278.1,3277.8,3.05082]
[1722385240337,0.95301271,3278.2,3277.8,3.05082]
[1722385240558,0.95301271,3278.2,3277.9,3.11169051]
[1722385240710,0.95301271,3278.3,3277.9,3.11169051]
[1722385241157,1.32801271,3278.4,3278.0,3.05061]
[1722385241312,0.375,3278.4,3278.0,3.05061]
[1722385241520,0.07544367,3278.3,3278.0,3.05061]
[1722385241741,0.07544367,3278.3,3278.0,3.05057]
[1722385242267,0.07544367,3278.3,3278.0,6.10114]
[1722385242418,0.07544367,3278.3,3278.0,3.05057]
[1722385242621,0.07544367,3278.3,3278.1,0.06100415]
[1722385243135,0.07544367,3278.3,3278.1,0.06100414]
[1722385243445,0.07544367,3278.3,3278.2,3.05045]
[1722385243761,0.07544367,3278.3,3278.2,3.11145136]
[1722385244044,0.07544367,3278.3,3278.2,6.16190136]
[1722385244763,0.375,3278.4,3278.3,6.10072]
[1722385246226,0.375,3278.4,3278.3,3.05036]
[1722385246421,0.375,3278.4,3278.1,3.05047]
[1722385246662,0.375,3278.4,3278.1,5.35696119]
[1722385246921,0.375,3278.4,3278.1,3.05047]
[1722385247144,0.07602016,3278.3,3278.1,3.05047]
[1722385247545,0.375,3278.4,3278.1,3.05047]
[1722385247751,0.07600626,3278.2,3277.9,3.05071]
[1722385247954,0.375,3278.4,3278.0,0.552761]
[1722385248330,0.0760222,3278.3,3278.0,0.552761]
[1722385248771,0.0760222,3278.3,3278.0,3.603341]
[1722385248973,0.0760222,3278.3,3278.1,3.05047]
[1722385249130,0.375,3278.4,3278.3,0.2]
[1722385249570,0.45101576,3278.4,3278.3,0.2]
[1722385250393,0.45101576,3278.4,3278.3,3.25036]
[1722385251248,0.45101576,3278.4,3278.3,0.2]
[1722385251659,0.45101576,3278.4,3278.3,3.25036]
[1722385251857,0.45101576,3278.4,3278.3,3.91646831]
[1722385252858,0.45101576,3278.4,3278.3,0.86610831]
[1722385253300,0.45101576,3278.4,3278.3,0.4]
[1722385257523,0.45101576,3278.4,3278.3,0.6]
[1722385258878,0.45101576,3278.4,3278.3,3.65036]
[1722385259775,0.45101576,3278.4,3278.3,3.71136053]
[1722385259975,0.45101576,3278.4,3278.3,3.65036]
[1722385260173,0.45101576,3278.4,3278.3,4.320432]
[1722385260607,0.45101576,3278.4,3278.3,1.270072]
[1722385261309,0.45101576,3278.4,3278.3,4.320432]
[1722385261553,0.45101576,3278.4,3278.3,4.520432]
[1722385263329,0.45101576,3278.4,3278.3,1.470072]
[1722385263534,0.45101576,3278.4,3278.3,0.8]
[1722385265422,0.45101576,3278.4,3278.3,1.0]
[1722385265677,5.75217576,3278.4,3278.3,1.0]
[1722385265826,7.02278136,3278.4,3278.3,1.0]
[1722385266020,5.75217576,3278.4,3278.3,1.0]
[1722385266358,7.34161356,3278.4,3278.3,1.0]
[1722385266864,4.29135356,3278.4,3278.3,1.0]
[1722385267169,2.70191576,3278.4,3278.3,1.0]
[1722385267336,4.29135356,3278.4,3278.3,1.0]
[1722385267534,3.97419349,3278.4,3278.3,1.0]
[1722385267948,5.75217576,3278.4,3278.3,1.0]
[1722385268134,7.34293703,3278.4,3278.3,1.0]
[1722385268471,5.75217576,3278.4,3278.3,1.0]
[1722385269374,9.87356269,3278.4,3278.3,1.0]
[1722385270493,15.03599899,3278.4,3278.3,1.0]
[1722385270659,18.03599899,3278.4,3278.3,1.0]
[1722385271452,15.92382269,3278.4,3278.3,1.0]
[1722385271798,26.30476131,3278.4,3278.3,0.1982]
[1722385271961,3.05118,3277.5,3276.7,3.05183]
[1722385272158,0.95519289,3277.0,3276.8,0.836243]
[1722385272392,0.95519289,3276.9,3276.8,0.836243]
[1722385272589,1.02833418,3276.9,3276.8,0.836243]
[1722385273001,1.02833418,3276.9,3276.3,2.585]
[1722385273002,1.34673181,3276.9,3276.3,2.3106]
[1722385273170,1.34673181,3276.9,3276.3,5.36277]
[1722385273171,0.9551441,3276.7,3276.3,5.36277]
[1722385273501,0.9551441,3276.7,3276.4,3.05212]
[1722385273994,0.9551441,3276.7,3276.3,2.3106]
[1722385273995,0.9551441,3276.7,3276.5,3.05203]
[1722385274375,0.9551441,3276.7,3276.3,5.36274]
[1722385274571,0.9551441,3276.7,3276.4,0.8415]
[1722385274769,0.9551441,3276.7,3276.4,3.89355]
[1722385275108,0.9551441,3276.7,3276.2,3.05228]
[1722385275109,1.27359052,3276.5,3276.2,3.05228]
[1722385275411,0.95500767,3276.4,3276.3,3.05222]
[1722385275616,1.27359052,3276.5,3276.3,3.05222]
[1722385275617,0.95500767,3276.5,3276.3,3.05222]
[1722385275899,1.59190048,3276.8,3276.3,3.05222]
[1722385275900,0.07283296,3276.4,3276.3,3.05222]
[1722385276105,0.07283296,3276.4,3276.3,3.662664]
[1722385276256,0.95500767,3276.6,3276.4,3.05207]
[1722385276453,0.95500767,3276.5,3276.4,3.05207]
[1722385276697,0.07282652,3276.5,3276.4,3.05207]
[1722385276896,1.02783419,3276.5,3276.3,3.662654]
[1722385277397,0.95500767,3276.4,3276.3,0.610444]
[1722385277708,0.95500767,3276.5,3276.3,3.662654]
[1722385277995,0.95500767,3276.6,3276.3,3.662654]
[1722385278207,0.07279089,3276.4,3276.3,3.662654]
[1722385278359,0.95500767,3276.6,3276.4,3.05211]
[1722385278704,0.95500767,3276.7,3276.5,3.05203]
[1722385278860,0.95500767,3276.7,3275.9,47.91865]
[1722385279059,0.95500767,3276.5,3276.1,3.0524]
[1722385279402,0.95500767,3276.6,3276.1,3.0524]
[1722385280104,0.95500767,3276.4,3276.0,1.61465251]
[1722385280310,1.27359052,3276.6,3275.9,7.43]
[1722385280311,0.95500767,3276.3,3275.9,7.43]
[1722385280721,0.07262037,3276.2,3275.9,7.43]
[1722385281209,0.95292598,3276.3,3275.9,7.43]
[1722385281509,0.07262716,3276.2,3276.1,3.0524]
[1722385281871,0.95292598,3276.6,3276.3,3.0522]
[1722385282225,1.27056797,3276.7,3276.3,3.0522]
[1722385282226,0.07249502,3276.5,3276.3,3.0522]
[1722385282569,0.95292598,3276.7,3276.3,3.0522]
[1722385282771,0.07248347,3276.4,3276.3,3.89243]
[1722385283021,0.95292598,3277.1,3276.7,3.05185]
[1722385283231,0.95292598,3277.1,3276.7,3.05176]
[1722385283519,0.95292598,3277.2,3276.5,3.05198]
[1722385283869,0.95292598,3277.1,3276.7,3.05185]
[1722385284068,0.95292598,3277.1,3276.7,3.05179]
[1722385284302,0.95292598,3277.2,3276.7,3.05179]
[1722385285076,0.95292598,3277.3,3276.7,3.05176]
[1722385285375,0.95292598,3277.1,3276.7,3.05176]
[1722385285575,0.95292598,3277.2,3276.7,3.05176]
[1722385285803,0.95292598,3277.1,3276.5,3.05198]
[1722385286011,0.95292598,3277.0,3276.5,3.05198]
[1722385286522,0.06759562,3276.9,3276.5,3.05197]
[1722385287477,0.06759562,3276.9,3276.3,3.8924]
[1722385287478,0.95292598,3277.0,3276.3,3.8924]
[1722385287729,0.06760919,3276.9,3276.3,3.05217]
[1722385288023,4.00468598,3276.8,3276.1,2.2977]
[1722385288374,1.02047476,3276.7,3276.1,5.35005]
[1722385288575,0.06754878,3276.7,3276.1,5.35005]
[1722385288775,4.00468598,3276.8,3276.1,5.35005]
[1722385288999,5.36829,3276.5,3275.9,7.43]
[1722385289433,0.06739062,3276.4,3275.9,7.43]
[1722385290891,0.06739062,3276.4,3276.0,3.0525]
[1722385291095,0.95141318,3276.8,3276.0,3.0525]
[1722385291297,0.06741613,3276.7,3276.1,1.04825]
[1722385291675,4.00310318,3276.9,3276.1,1.04825]
[1722385291802,0.06744329,3276.6,3276.1,1.04825]
[1722385291985,3.05169,3276.9,3276.1,1.04825]
[1722385292187,4.00310318,3276.9,3276.1,1.04825]
[1722385292730,0.06740969,3276.8,3276.2,3.05229]
[1722385292942,0.06740969,3276.8,3276.1,1.04825]
[1722385293090,0.06740969,3276.8,3275.9,7.43]
[1722385293091,3.05194,3276.6,3275.9,7.43]
[1722385293288,0.06739544,3276.5,3275.9,10.48259]
[1722385293794,3.11949544,3276.5,3275.9,7.43]
[1722385293998,0.06739544,3276.5,3275.6,2.3116]
[1722385294183,3.05228,3276.3,3275.5,3.05296]
[1722385294384,4.07121921,3276.5,3275.7,3.05271]
[1722385294628,0.06726782,3276.2,3275.8,3.05267]
[1722385294797,4.00382377,3276.5,3275.7,3.05277]
[1722385294982,0.0672471,3276.1,3275.7,3.05277]
[1722385295328,0.06723996,3276.0,3275.7,3.05277]
[1722385295862,3.95156101,3276.7,3276.0,3.05244]
[1722385296166,3.0,3276.7,3276.1,3.0524]
[1722385296347,6.0519,3276.7,3275.9,5.36591]
[1722385296548,6.0519,3276.7,3275.9,8.41842]
[1722385296740,6.0519,3276.7,3276.0,3.05249]
[1722385297874,3.05203,3276.5,3275.8,38.0526]
[1722385298023,0.95156101,3276.6,3275.7,0.6638056]
[1722385298575,4.00350101,3276.6,3275.9,3.05258]
[1722385298735,3.05203,3276.5,3275.8,35.0]
[1722385299061,3.05218,3276.4,3275.7,3.0527]
[1722385299225,5.40517,3276.3,3275.6,3.05286]
[1722385300750,5.40517,3276.3,3275.6,6.10567]
[1722385300938,5.40517,3276.3,3275.6,3.05281]
[1722385301462,0.06719165,3276.2,3275.6,3.05281]
[1722385304072,0.06719165,3276.2,3275.6,3.0528]
[1722385304673,0.06719165,3276.2,3275.7,3.05275]
[1722385304980,0.06719165,3276.2,3275.7,3.05277]
[1722385306787,3.11951165,3276.2,3275.5,3.05291]
[1722385307285,0.06719165,3276.2,3275.6,3.05286]
[1722385308390,1.01875266,3276.2,3275.6,3.05286]
[1722385309461,0.95156101,3276.1,3275.6,3.05286]
[1722385309663,0.0671078,3276.0,3275.6,6.10187288]
[1722385310608,3.1196378,3276.0,3275.0,2.2534]
[1722385310806,3.1196378,3276.0,3275.0,5.30675]
[1722385310807,0.95156101,3275.7,3275.0,5.30675]
[1722385310965,0.95156101,3275.7,3274.7,2.2534]
[1722385311316,0.95156101,3275.7,3274.8,3.27896]
[1722385311317,0.95156101,3275.4,3274.8,3.27896]
[1722385311609,1.01844231,3275.3,3274.8,3.27896]
[1722385311994,0.0668813,3275.3,3274.8,3.27889]
[1722385312284,0.95156101,3275.5,3275.4,3.05306]
[1722385312459,1.0181319,3275.5,3275.4,3.358366]
[1722385312660,0.06657089,3275.5,3275.4,3.358366]
[1722385313509,1.0181319,3275.5,3275.4,3.358366]
[1722385313803,1.0181319,3275.5,3275.2,8.54199]
[1722385314102,1.0181319,3275.5,3275.3,3.05313]
[1722385314601,0.95156101,3275.4,3275.3,3.05313]
[1722385315573,1.01820164,3275.4,3275.3,3.05313]
[1722385315913,1.01820164,3275.4,3275.0,3.05334]
[1722385316210,0.95596704,3275.2,3275.0,3.05334]
[1722385316714,1.26874802,3275.3,3274.8,3.2789]
[1722385316715,1.02203337,3275.1,3274.8,3.2789]
[1722385316867,1.02203337,3275.1,3274.9,3.38136]
[1722385318111,0.95596704,3275.1,3274.9,3.38136]
[1722385318612,1.26874802,3275.3,3274.8,0.22534]
[1722385318613,0.95596704,3275.0,3274.8,0.22534]
[1722385318770,0.95596704,3274.9,3274.7,3.05365]
[1722385318969,1.02194067,3274.9,3274.7,3.05365]
[1722385319172,0.06597363,3274.9,3274.8,3.05362]
[1722385319413,1.02190527,3274.9,3274.8,3.05362]
[1722385319566,0.95593164,3275.0,3274.7,6.10271288]
[1722385319772,1.02191579,3274.9,3274.7,6.10271288]
[1722385319999,0.95593537,3275.0,3274.7,6.10266288]
[1722385320277,0.95593537,3275.0,3274.7,9.15630288]
[1722385320502,0.065994,3274.9,3274.8,3.05361]
[1722385320702,1.02192937,3274.9,3274.6,38.05374]
[1722385320902,0.065994,3274.9,3274.6,38.04901288]
[1722385321216,4.3282005,3274.8,3274.0,2.3668]
[1722385321555,4.3282005,3274.8,3273.9,3.05437]
[1722385321556,0.95580485,3274.4,3273.9,3.05437]
[1722385321917,0.06594482,3274.3,3274.0,3.05432]
[1722385322252,0.06594482,3274.3,3273.8,3.05455]
[1722385322407,0.06594482,3274.3,3273.8,3.05447]
[1722385322804,1.02174967,3274.3,3273.8,3.05447]
[1722385322999,1.02174967,3274.3,3273.7,3.05464]
[1722385323201,0.95580485,3274.0,3273.0,2.3793]
[1722385323403,0.95580485,3273.9,3273.0,6.236516]
[1722385323709,0.95580485,3273.7,3273.2,3.05505]
[1722385324027,0.06545328,3273.6,3273.2,3.05505]
[1722385324749,0.06543933,3273.5,3273.2,3.05505]
[1722385325048,0.06543933,3273.5,3273.4,3.05492]
[1722385325254,0.95365667,3273.9,3273.4,3.05492]
[1722385325417,0.0653749,3273.5,3273.4,6.10984]
[1722385325642,0.95365667,3274.2,3273.4,0.610984]
[1722385325858,0.95365667,3274.5,3274.1,3.05427]
[1722385326194,3.85512779,3274.8,3274.2,3.05414]
[1722385326195,0.95365667,3274.6,3274.2,3.05414]
[1722385326470,3.21935667,3274.8,3274.2,3.05414]
[1722385326672,3.21935667,3274.8,3274.3,3.05399]
[1722385326673,0.95365667,3274.8,3274.3,3.05399]
[1722385326827,0.95365667,3274.8,3274.1,3.05422]
[1722385327127,0.95365667,3274.9,3274.3,3.054]
[1722385327543,0.95365667,3274.9,3274.1,3.05422]
[1722385327725,0.95365667,3274.9,3274.1,3.0542]
[1722385327726,0.95280668,3274.7,3274.1,3.0542]
[1722385327955,0.95280668,3274.9,3274.3,6.10802]
[1722385328277,0.95280668,3274.8,3274.3,3.05403]
[1722385328473,0.95280668,3274.9,3274.3,3.05403]
[1722385328674,0.95280668,3274.9,3274.3,3.05401]
[1722385328835,0.95280668,3274.9,3274.4,3.05397]
[1722385329557,0.95280668,3274.9,3274.3,3.05401]
[1722385329730,0.95280668,3274.7,3274.1,3.05424]
[1722385329937,2.3447,3274.5,3273.8,3.05454]
[1722385330177,3.05411,3274.3,3273.6,3.05468]
[1722385330543,0.95280668,3274.2,3273.5,10.48482]
[1722385330773,3.05427,3274.1,3273.5,7.43]
[1722385330979,4.00728668,3273.9,3273.2,3.05506]
[1722385331375,3.05448,3273.9,3273.2,3.05506]
[1722385331578,0.06519391,3273.8,3273.2,3.05506]
[1722385332575,0.95280668,3274.2,3273.6,3.05468]
[1722385332781,0.06501812,3273.7,3273.6,3.05468]
[1722385332930,7.00686668,3274.4,3273.6,3.05468]
[1722385333131,2.2585058,3274.3,3273.6,3.05468]
[1722385333431,1.30569912,3274.3,3273.8,3.05455]
[1722385333657,1.30569912,3274.3,3273.6,3.05465]
[1722385333881,4.35977912,3274.3,3273.6,3.05465]
[1722385334043,3.0,3274.2,3273.4,3.05487]
[1722385334250,0.06516062,3274.1,3273.6,3.05468]
[1722385334439,1.24054867,3274.3,3273.6,6.10935]
[1722385334786,0.06518136,3274.2,3273.9,3.05444]
[1722385335070,3.0,3274.4,3273.9,3.05444]
[1722385335378,0.06516814,3274.3,3273.7,6.10918]
[1722385335535,0.06516814,3274.3,3273.7,3.05457]
[1722385335734,0.06516814,3274.3,3273.8,3.05449]
[1722385335935,0.06516814,3274.3,3273.9,3.05445]
[1722385336803,0.06516814,3274.3,3274.2,3.05418]
[1722385337281,2.08517287,3274.9,3274.2,3.05418]
[1722385337690,0.06526001,3274.8,3274.2,3.05418]
[1722385337835,0.06526001,3274.8,3274.2,6.1083]
[1722385338272,0.06526001,3274.8,3274.3,3.05407]
[1722385338472,0.06526001,3274.8,3274.6,3.05375]
[1722385338863,0.06526001,3274.8,3274.4,3.05392]
[1722385339174,0.06526001,3274.8,3274.5,3.05389]
[1722385339381,0.06526001,3274.8,3274.6,3.05374]
[1722385339684,0.95216731,3275.1,3274.7,3.05371]
[1722385339839,0.06533234,3275.0,3274.7,3.05371]
[1722385340593,0.06531839,3274.9,3274.6,3.05375]
[1722385340800,0.06531839,3274.9,3274.6,3.05373]
[1722385340958,0.95216731,3275.3,3275.2,3.05324]
[1722385341158,0.95216731,3275.7,3275.3,3.05309]
[1722385341395,1.37034471,3275.8,3275.3,3.05309]
[1722385341598,1.37034471,3275.8,3275.3,3.05307]
[1722385341802,1.37034471,3275.8,3275.5,3.05294]
[1722385341991,0.4181774,3275.8,3275.5,3.05294]
[1722385342192,0.95216731,3276.0,3275.5,3.05294]
[1722385342708,0.95216731,3276.0,3275.3,3.0531]
[1722385343000,0.95216731,3276.0,3274.7,3.05369]
[1722385343001,0.95216731,3275.7,3274.7,3.05369]
[1722385343205,0.95216731,3275.8,3275.4,3.05304]
[1722385343361,0.22217237,3275.7,3275.5,3.05296]
[1722385343565,0.95216731,3275.9,3275.3,3.05307]
[1722385343999,0.95216731,3275.9,3275.4,3.05304]
[1722385345262,0.95216731,3275.7,3275.1,3.05326]
[1722385345463,0.95216731,3275.6,3275.2,3.05324]
[1722385346593,0.06337678,3275.5,3274.7,3.05367]
[1722385346837,0.06337678,3275.5,3274.4,7.43]
[1722385346838,0.95353386,3275.3,3274.8,3.05356]
[1722385346994,0.95346194,3275.4,3275.0,3.05343]
[1722385347189,0.06355221,3275.2,3275.0,3.05337]
[1722385347419,0.95346194,3275.5,3275.0,3.05337]
[1722385347618,1.40480639,3275.5,3274.9,3.05352]
[1722385347822,0.95346194,3275.3,3275.0,3.05341]
[1722385348020,0.06355292,3275.4,3275.0,3.05341]
[1722385348237,0.06341033,3275.2,3275.0,3.05341]
[1722385348530,0.0633896,3275.1,3275.0,3.05341]
[1722385348731,0.95346194,3275.5,3275.0,3.05341]
[1722385348894,0.06340425,3275.4,3275.0,6.10674]
[1722385349093,0.06340425,3275.4,3275.0,3.05336]
[1722385349334,0.06340425,3275.4,3275.1,3.05332]
[1722385349504,3.24216194,3275.6,3275.1,3.05332]
[1722385349694,0.95368952,3275.5,3275.1,3.05332]
[1722385349895,1.01712807,3275.5,3275.1,3.05332]
[1722385350129,1.01712807,3275.5,3274.8,3.05357]
[1722385350130,1.01712807,3275.5,3275.3,3.05307]
[1722385350313,0.06343855,3275.5,3275.3,3.05307]
[1722385350510,0.95368952,3275.7,3275.4,3.05306]
[1722385350715,0.06347758,3275.6,3275.4,3.05306]
[1722385351247,0.06347758,3275.6,3275.5,3.05296]
[1722385351811,0.06347758,3275.6,3275.3,3.05308]
[1722385352161,0.95368952,3275.5,3275.2,2.0]
[1722385352310,1.27158603,3275.4,3275.2,2.0]
[1722385352510,1.33540788,3275.3,3275.2,2.0]
[1722385353065,0.06382185,3275.3,3275.2,2.0]
[1722385353353,2.50422185,3275.3,3275.2,2.0]
[1722385353543,4.50375134,3275.3,3275.2,2.0]
[1722385353727,2.91365379,3275.3,3275.2,2.0]
[1722385354133,4.18584355,3275.3,3275.2,2.0]
[1722385354314,7.55690134,3275.3,3275.2,2.0]
[1722385354819,4.50375134,3275.3,3275.2,2.0]
[1722385355320,2.91365379,3275.3,3275.2,2.0]
[1722385355515,4.50432684,3275.3,3275.2,2.0]
[1722385356230,2.91365379,3275.3,3275.2,2.0]
[1722385356422,4.50448418,3275.3,3275.2,2.0]
[1722385356626,7.55794921,3275.3,3275.2,2.0]
[1722385356826,12.01995379,3275.3,3275.2,2.0]
[1722385357255,14.24755737,3275.3,3275.2,2.0]
[1722385357426,12.01995379,3275.3,3275.2,2.0]
[1722385357627,14.24689652,3275.3,3275.2,2.0]
[1722385357869,12.01995379,3275.3,3275.2,2.0]
[1722385358077,17.29985172,3275.3,3275.2,2.0]
[1722385358225,14.14775117,3275.3,3275.2,2.0]
[1722385358430,12.01995379,3275.3,3275.2,2.0]
[1722385358653,14.24672631,3275.3,3275.2,2.0]
[1722385358859,14.98360379,3275.3,3275.2,2.0]
[1722385359154,17.11140873,3275.3,3275.2,2.0]
[1722385359401,19.74163864,3275.3,3275.2,2.0]
[1722385359745,17.11140873,3275.3,3275.2,2.0]
[1722385359949,17.66140873,3275.3,3275.2,2.0]
[1722385360489,20.71455873,3275.3,3275.2,2.0]
[1722385361489,17.66140873,3275.3,3275.2,2.0]
[1722385361670,20.29195949,3275.3,3275.2,2.0]
[1722385362474,17.66140873,3275.3,3275.2,2.0]
[1722385362755,20.29209174,3275.3,3275.2,2.0]
[1722385363557,17.66140873,3275.3,3275.2,2.0]
[1722385366153,20.71455873,3275.3,3275.2,2.0]
[1722385366391,17.66140873,3275.3,3275.2,2.0]
[1722385369655,20.29303484,3275.3,3275.2,2.0]
[1722385370278,17.66597126,3275.3,3275.2,2.0]
[1722385370470,20.29759737,3275.3,3275.2,2.0]
[1722385370704,17.66597126,3275.3,3275.2,2.0]
[1722385370904,20.29809141,3275.3,3275.2,2.0]
[1722385371526,17.66597126,3275.3,3275.2,2.0]
[1722385372546,17.66597126,3275.3,3274.3,0.2]
[1722385372547,6.10798,3274.4,3274.3,0.2]
[1722385372710,9.22496457,3274.4,3274.3,0.2]
[1722385372906,14.45306898,3274.4,3274.3,0.2]
[1722385373592,12.22496457,3274.4,3274.3,0.2]
[1722385374481,14.45225729,3274.4,3274.3,0.2]
[1722385374680,9.76546322,3274.4,3274.3,0.2]
[1722385374977,15.04674594,3274.4,3274.3,0.2]
[1722385375162,12.81945322,3274.4,3274.3,0.2]
[1722385375331,12.21632,3274.3,3274.2,0.39274391]
[1722385375533,15.27918949,3274.3,3274.2,0.39274391]
[1722385375860,13.41341674,3274.3,3274.2,0.39274391]
[1722385376040,15.54617386,3274.3,3274.2,0.39274391]
[1722385376240,13.41341674,3274.3,3274.2,0.39274391]
[1722385378442,16.46749674,3274.3,3274.2,0.39274391]
[1722385378657,21.22854053,3274.3,3274.2,0.39274391]
[1722385379343,20.9850692,3274.3,3274.2,3.91e-06]
[1722385379582,26.66782053,3274.3,3274.2,3.91e-06]
[1722385379784,24.0391492,3274.3,3274.2,3.91e-06]
[1722385381572,3.05537,3273.0,3272.7,2.3871]
[1722385381790,1.01559349,3272.9,3272.7,2.3871]
[1722385381977,0.95329251,3272.8,3272.7,2.3871]
[1722385382136,3.11769524,3272.8,3272.7,2.3871]
[1722385382375,3.11769524,3272.8,3272.1,3.05608]
[1722385382376,3.0557,3272.6,3272.1,2.3141]
[1722385382674,1.01450852,3272.5,3272.1,2.3141]
[1722385383350,0.0618339,3272.5,3272.1,2.3141]
[1722385384656,3.05569,3272.6,3272.1,2.3141]
[1722385384853,0.06186761,3272.4,3272.1,2.3141]
[1722385385185,1.27105668,3272.9,3272.3,3.05595]
[1722385385186,4.00808462,3272.9,3272.3,3.05595]
[1722385385341,3.05541,3272.9,3272.1,6.212813]
[1722385385541,6.11087,3272.9,3272.1,6.212813]
[1722385385843,4.00808462,3272.9,3272.1,6.212813]
[1722385386039,3.05558,3272.7,3272.1,3.156763]
[1722385386286,3.05558,3272.7,3272.1,2.3141]
[1722385386581,3.05567,3272.6,3272.1,2.3141]
[1722385387163,3.05586,3272.4,3272.1,2.3141]
[1722385387557,3.05594,3272.4,3272.1,2.3141]
[1722385387745,3.0,3272.3,3272.1,2.3141]
[1722385387947,6.05595,3272.3,3272.1,2.3141]
[1722385388168,3.0,3272.3,3272.1,2.3141]
[1722385388552,3.05595,3272.3,3271.6,2.442]
[1722385389169,3.05638,3271.9,3271.2,2.442]
[1722385389388,5.96615865,3272.3,3271.2,2.442]
[1722385389611,3.05652,3271.7,3271.2,2.442]
[1722385390108,3.05666,3271.6,3271.2,2.442]
[1722385390307,2.585,3272.1,3271.2,2.442]
[1722385390308,3.05649,3271.8,3271.2,2.442]
[1722385390511,3.05652,3271.7,3271.2,2.442]
[1722385391430,6.1131,3271.7,3271.2,2.442]
[1722385391721,0.06131998,3271.6,3271.2,2.442]
[1722385392074,3.05647,3271.8,3271.2,2.442]
[1722385392270,0.061306,3271.5,3271.2,2.442]
[1722385392475,3.05647,3271.8,3271.2,2.442]
[1722385392703,0.06128523,3271.4,3271.2,2.442]
[1722385392903,3.05653,3271.7,3271.2,2.442]
[1722385393178,3.05661,3271.6,3271.2,2.442]
[1722385393382,3.05688,3271.3,3271.2,2.442]
[1722385393587,0.06127805,3271.3,3271.1,0.1450638]
[1722385393888,3.05698,3271.2,3271.1,0.1450638]
[1722385394283,3.11814641,3271.2,3271.1,0.1450638]
[1722385395324,9.48694105,3271.2,3271.1,0.1450638]
[1722385395832,12.54392105,3271.2,3271.1,0.1450638]
[1722385396948,9.48694105,3271.2,3271.1,0.1450638]
[1722385399842,3.06116641,3271.2,3271.1,0.1450638]
[1722385400195,0.06116641,3271.2,3271.1,0.1450638]
[1722385400390,3.0,3271.3,3271.1,0.1450638]
[1722385400692,0.06055838,3271.2,3271.1,0.1450638]
[1722385400901,0.06055838,3271.2,3271.1,3.2021338]
[1722385401126,10.48649,3271.8,3271.1,3.2021338]
[1722385401444,11.840767,3271.8,3271.1,3.4021338]
[1722385401742,0.05860684,3271.7,3271.2,3.05697]
[1722385401899,0.05860684,3271.7,3271.3,3.05683]
[1722385402094,0.05860684,3271.7,3271.2,3.0569]
[1722385402095,7.43,3271.8,3271.4,2.3871]
[1722385402293,10.48647,3271.8,3271.4,2.3871]
[1722385402508,0.05860047,3271.7,3271.4,2.3871]
[1722385402795,7.43,3271.8,3271.4,2.3871]
[1722385402995,0.05843548,3271.6,3271.4,2.3871]
[1722385403191,7.43,3271.8,3271.5,3.0567]
[1722385403192,3.0,3271.7,3271.5,3.0567]
[1722385403438,0.0586862,3271.6,3271.4,5.44384]
[1722385403636,0.0586862,3271.6,3271.4,2.3871]
[1722385404048,0.0586862,3271.6,3271.1,0.3450638]
[1722385404214,1.71885382,3271.6,3271.1,0.3450638]
[1722385404402,3.05678,3271.5,3271.1,0.3450638]
[1722385404597,0.05890547,3271.5,3271.1,0.3450638]
[1722385404797,3.11567547,3271.5,3271.1,0.3450638]
[1722385405407,0.05890547,3271.5,3271.1,0.3450638]
[1722385405608,9.11315,3271.7,3271.1,0.5450638]
[1722385405609,6.05655,3271.7,3271.1,0.5450638]
[1722385405858,0.05892077,3271.6,3271.1,1.14756118]
[1722385406041,0.05892077,3271.6,3271.4,3.05674]
[1722385406252,0.05892077,3271.6,3271.2,5.48502]
[1722385406253,0.05892077,3271.6,3271.3,3.05686]
[1722385406554,0.05892077,3271.6,3271.4,3.05675]
[1722385407062,0.05892077,3271.6,3271.5,3.0567]
[1722385407346,0.05892077,3271.6,3271.5,9.152843]
[1722385407837,7.43,3272.2,3271.8,3.05632]
[1722385408042,7.43,3272.6,3271.6,3.05652]
[1722385408199,3.05578,3272.5,3271.6,3.05652]
[1722385408407,7.43,3272.6,3271.8,3.05636]
[1722385408600,3.0,3272.5,3271.8,6.1127]
[1722385408918,3.0,3272.5,3271.8,3.05634]
[1722385409117,3.05591,3272.4,3271.7,0.6095963]
[1722385409435,3.0,3272.3,3271.6,3.05652]
[1722385410015,3.05623,3272.0,3271.5,2.4281]
[1722385410502,3.0564,3271.9,3271.5,2.4281]
[1722385410702,3.05648,3271.8,3271.2,2.401]
[1722385411130,3.05645,3271.8,3271.2,2.401]
[1722385412255,3.05652,3271.7,3271.2,2.401]
[1722385412668,3.05645,3271.8,3271.2,2.401]
[1722385413886,3.05657,3271.7,3271.2,2.401]
[1722385414031,3.05645,3271.8,3271.2,2.401]
[1722385414231,3.05651,3271.7,3271.2,2.401]
[1722385414859,3.05641,3271.9,3271.2,2.401]
[1722385415247,3.05641,3271.9,3271.2,5.45797]
[1722385415577,3.05628,3272.0,3271.2,6.36398338]
[1722385415764,3.05638,3271.9,3271.2,6.36398338]
[1722385417272,3.05642,3271.8,3271.2,6.36398338]
[1722385417444,3.05642,3271.8,3271.2,5.45797]
[1722385417780,6.11291,3271.8,3271.2,2.401]
[1722385417943,3.05642,3271.8,3271.2,2.401]
[1722385418478,3.05698,3271.2,3271.1,0.5450638]
[1722385418774,3.362678,3271.2,3271.1,0.5450638]
[1722385419353,6.419658,3271.2,3271.1,0.5450638]
[1722385421444,6.47862315,3271.2,3271.1,0.5450638]